fUST/lending_fUST_20250405
["ID","MTS","AMOUNT","RATE_DAILY","PERIOD"]
[357173221,1743858656769,-151.0,0.000234,7]
[357173222,1743858656778,-4590.84,0.00023451,2]
[357173223,1743858656789,-600.0,0.000235,2]
[357173224,1743858656799,-155.76349,0.0002352,2]
[357173225,1743858656809,-7789.6112572,0.00023521,4]
[357173226,1743858656818,-151.0,0.00023561,7]
[357173227,1743858656828,-646.83,0.00023561,2]
[357173228,1743858656838,-1749.15,0.00023561,2]
[357173229,1743858656848,-508.79,0.00023561,2]
[357173230,1743858656858,-1750.68,0.00023561,2]
[357173231,1743858656867,-854.97,0.00023561,2]
[357173232,1743858656877,-3194.54,0.00023561,2]
[357173233,1743858656887,-500.0,0.00023561,2]
[357173234,1743858656897,-549.57,0.00023561,2]
[357173235,1743858656907,-1304.9,0.00023561,2]
[357173236,1743858656917,-808.65,0.00023561,2]
[357173237,1743858656926,-381.23,0.00023561,2]
[357173238,1743858656936,-1716.09,0.00023561,2]
[357173239,1743858656946,-372.03807553,0.00023561,2]
[357173240,1743858656955,-2331.95,0.00023561,2]
[357173241,1743858656965,-776.09,0.00023561,2]
[357173242,1743858656977,-590.42,0.00023561,2]
[357173243,1743858656986,-624.89,0.00023561,2]
[357173244,1743858656996,-66310.53,0.00023561,2]
[357173245,1743858657004,-670.7,0.00023561,2]
[357173246,1743858657013,-901.27,0.00023561,2]
[357173247,1743858657021,-631.0,0.00023561,2]
[357173248,1743858657030,-500.0,0.00023561,2]
[357173249,1743858657038,-1988.45,0.00023561,2]
[357173250,1743858657046,-691.0,0.00023561,2]
[357173251,1743858657054,-500.0,0.00023561,2]
[357173252,1743858657063,-3354.94,0.00023561,2]
[357173253,1743858657071,-500.0,0.00023561,2]
[357173254,1743858657080,-500.0,0.00023561,2]
[357173255,1743858657088,-722.15,0.00023561,2]
[357173256,1743858657097,-898.1,0.00023561,2]
[357173257,1743858657106,-12430.07038584,0.00023597,2]
[357173258,1743858657115,-3000.0,0.00023664,2]
[357173259,1743858657124,-4590.84,0.00023725,2]
[357173260,1743858657138,-646.83,0.00023835,2]
[357173261,1743858657148,-1749.15,0.00023835,2]
[357173262,1743858657157,-508.79,0.00023835,2]
[357173263,1743858657167,-1750.68,0.00023835,2]
[357173264,1743858657178,-854.97,0.00023835,2]
[357173265,1743858657188,-3194.54,0.00023835,2]
[357173266,1743858657197,-358.46,0.00023835,2]
[357173267,1743858657207,-549.57,0.00023835,2]
[357173268,1743858657218,-1304.9,0.00023835,2]
[357173269,1743858657229,-808.65,0.00023835,2]
[357173270,1743858657239,-1716.09,0.00023835,2]
[357173271,1743858657249,-2331.95,0.00023835,2]
[357173272,1743858657259,-776.09,0.00023835,2]
[357173273,1743858657269,-590.42,0.00023835,2]
[357173274,1743858657279,-624.89,0.00023835,2]
[357173275,1743858657288,-66310.53,0.00023835,2]
[357173276,1743858657298,-670.7,0.00023835,2]
[357173277,1743858657308,-901.27,0.00023835,2]
[357173278,1743858657317,-631.0,0.00023835,2]
[357173279,1743858657327,-452.12,0.00023835,2]
[357173280,1743858657336,-1988.45,0.00023835,2]
[357173281,1743858657347,-691.0,0.00023835,2]
[357173282,1743858657356,-500.0,0.00023835,2]
[357173283,1743858657366,-3354.94,0.00023835,2]
[357173284,1743858657376,-500.0,0.00023835,2]
[357173285,1743858657386,-500.0,0.00023835,2]
[357173286,1743858657396,-722.15,0.00023835,2]
[357173287,1743858657405,-898.1,0.00023835,2]
[357173288,1743858657415,-173.530718,0.00023904,14]
[357173289,1743858657424,-4590.84,0.00023999,2]
[357173290,1743858657435,-2000.0,0.00024,4]
[357173291,1743858657444,-43741.23277959,0.00024,2]
[357173292,1743858657571,-77726.26937507,0.00024,2]
[357173293,1743858657581,-1373.8787817,0.00024,2]
[357173294,1743858657591,-40886.25862043,0.00024,16]
[357173295,1743858657601,-15570.9,0.00024,5]
[357173296,1743858657611,-98644.46473863,0.00024,5]
[357173297,1743858657894,-500.0,0.00019178,2]
[357173298,1743858657904,-500.0,0.00019178,2]
[357173299,1743858657914,-500.0,0.00019452,2]
[357173300,1743858657924,-338.12238979,0.00019452,2]
[357173301,1743858657933,-401.0,0.00019504,2]
[357173302,1743858657943,-500.0,0.00019726,2]
[357173303,1743858657953,-500.0,0.0002,2]
[357173304,1743858657962,-500.0,0.00020273,2]
[357173305,1743858657973,-29.84583993,0.00020547,2]
[357173306,1743858657986,-470.15416007,0.00020547,2]
[357173307,1743858657995,-160.0,0.0002062,2]
[357173308,1743858658005,-419.20823938,0.00020732,2]
[357173309,1743858658015,-160.0,0.00020732,2]
[357173310,1743858658024,-424.93975042,0.00020821,2]
[357173311,1743858658073,-75.06024958,0.00020821,2]
[357173312,1743858658083,-13119.46897132,0.00024,5]
[357173313,1743858658101,-2331.70199999,0.00024,5]
[357173314,1743858658113,-11300.0,0.00024,5]
[357173378,1743859832773,-158.345959,0.0001784,2]
[357173379,1743859832783,-179.02403925,0.00017993,2]
[357173380,1743859832840,-2916.20377205,0.00017993,2]
[357173381,1743859832850,-300.0,0.00017999,2]
[357173388,1743859832972,-10720.62664034,0.00018,2]
[357173389,1743859832982,-201.2643579,0.00018196,2]
[357173390,1743859832991,-201.541298,0.0001832,2]
[357173391,1743859833001,-201.541298,0.00018411,2]
[357173392,1743859833010,-250.0,0.00018457,2]
[357173393,1743859833019,-2076.69969794,0.00018816,2]
[357173394,1743859833030,-9164.62942684,0.000189,2]
[357173395,1743859833040,-199.12728908,0.00019077,2]
[357173396,1743859833050,-500.0,0.00019173,2]
[357173397,1743859833060,-500.0,0.00019173,2]
[357173398,1743859833070,-500.0,0.00019173,2]
[357173399,1743859833080,-500.0,0.00019173,2]
[357173400,1743859833090,-500.0,0.00019173,2]
[357173401,1743859833100,-500.0,0.00019173,2]
[357173402,1743859833111,-584.31777921,0.00019173,2]
[357173403,1743859833121,-456.14143506,0.00019173,2]
[357173404,1743859833132,-503.71678504,0.00019173,2]
[357173405,1743859833142,-500.0,0.00019173,2]
[357173406,1743859833152,-467.36409744,0.00019173,2]
[357173407,1743859833162,-500.0,0.00019173,2]
[357173408,1743859833172,-319.30792205,0.00019177,2]
[357173409,1743859833182,-576.0,0.00019178,2]
[357173410,1743859833193,-500.0,0.00019178,2]
[357173411,1743859833202,-500.0,0.00019178,2]
[357173412,1743859833212,-500.0,0.00019178,2]
[357173413,1743859833222,-500.0,0.00019178,2]
[357173414,1743859833232,-500.0,0.00019178,2]
[357173415,1743859833242,-500.0,0.00019178,2]
[357173416,1743859833251,-500.0,0.00019178,2]
[357173417,1743859833260,-500.0,0.00019178,2]
[357173418,1743859833269,-500.0,0.00019178,2]
[357173419,1743859833282,-333.10102553,0.00019178,2]
[357173420,1743859833291,-500.0,0.00019178,2]
[357173421,1743859833300,-500.0,0.00019178,2]
[357173422,1743859833310,-500.0,0.00019178,2]
[357173423,1743859833319,-500.0,0.00019178,2]
[357173424,1743859833329,-500.0,0.00019178,2]
[357173425,1743859833339,-500.0,0.00019178,2]
[357173426,1743859833348,-500.0,0.00019178,2]
[357173427,1743859833358,-500.0,0.00019178,2]
[357173428,1743859833368,-500.0,0.00019178,2]
[357173429,1743859833378,-500.0,0.00019178,2]
[357173430,1743859833388,-200.0,0.00019178,2]
[357173431,1743859833397,-500.0,0.00019178,2]
[357173432,1743859833407,-500.0,0.00019178,2]
[357173433,1743859833417,-500.0,0.00019178,2]
[357173434,1743859833428,-500.0,0.00019178,2]
[357173435,1743859833438,-500.0,0.00019178,2]
[357173436,1743859833448,-500.0,0.00019178,2]
[357173437,1743859833459,-500.0,0.00019178,2]
[357173438,1743859833473,-500.0,0.00019178,2]
[357173439,1743859833483,-500.0,0.00019178,2]
[357173440,1743859833494,-500.0,0.00019178,2]
[357173441,1743859833505,-500.0,0.00019178,2]
[357173442,1743859833515,-500.0,0.00019178,2]
[357173443,1743859833527,-500.0,0.00019178,2]
[357173444,1743859833537,-500.0,0.00019178,2]
[357173445,1743859833550,-500.0,0.00019178,2]
[357173446,1743859833560,-500.0,0.00019178,2]
[357173447,1743859833570,-500.0,0.00019178,2]
[357173448,1743859833579,-500.0,0.00019178,2]
[357173449,1743859833589,-500.0,0.00019178,2]
[357173450,1743859833600,-500.0,0.00019178,2]
[357173451,1743859833609,-500.0,0.00019178,2]
[357173452,1743859833619,-500.0,0.00019178,2]
[357173453,1743859833629,-500.0,0.00019178,2]
[357173454,1743859833638,-500.0,0.00019178,2]
[357173455,1743859833648,-500.0,0.00019178,2]
[357173456,1743859833657,-710.35,0.00019178,2]
[357173457,1743859833667,-500.0,0.00019178,2]
[357173458,1743859833678,-500.0,0.00019178,2]
[357173459,1743859833689,-500.0,0.00019178,2]
[357173460,1743859833699,-500.0,0.00019178,2]
[357173461,1743859833710,-500.0,0.00019178,2]
[357173462,1743859833720,-500.0,0.00019178,2]
[357173463,1743859833731,-516.41960172,0.00019178,2]
[357173464,1743859833741,-500.0,0.00019178,2]
[357173465,1743859833751,-961.8,0.00019178,2]
[357173466,1743859833760,-500.0,0.00019178,2]
[357173467,1743859833770,-500.0,0.00019178,2]
[357173468,1743859833780,-500.0,0.00019178,2]
[357173469,1743859833790,-500.0,0.00019178,2]
[357173470,1743859833800,-500.0,0.00019178,2]
[357173471,1743859833810,-500.0,0.00019178,2]
[357173472,1743859833820,-500.0,0.00019178,2]
[357173473,1743859833830,-500.0,0.00019178,2]
[357173474,1743859833840,-852.98,0.00019178,2]
[357173475,1743859833850,-500.0,0.00019178,2]
[357173476,1743859833859,-500.0,0.00019178,2]
[357173477,1743859833869,-500.0,0.00019178,2]
[357173478,1743859833878,-500.0,0.00019178,2]
[357173479,1743859833887,-500.0,0.00019178,2]
[357173480,1743859833897,-938.67,0.00019178,2]
[357173481,1743859833906,-500.0,0.00019178,2]
[357173482,1743859833916,-537.47534139,0.00019178,2]
[357173483,1743859833925,-500.0,0.00019178,2]
[357173484,1743859833935,-500.0,0.00019178,2]
[357173485,1743859833944,-500.0,0.00019178,2]
[357173486,1743859833957,-500.0,0.00019178,2]
[357173487,1743859833968,-500.0,0.00019178,2]
[357173488,1743859833978,-500.0,0.00019178,2]
[357173489,1743859833988,-500.0,0.00019178,2]
[357173490,1743859833997,-500.0,0.00019178,2]
[357173491,1743859834007,-500.0,0.00019178,2]
[357173492,1743859834016,-500.0,0.00019178,2]
[357173493,1743859834026,-500.0,0.00019178,2]
[357173494,1743859834036,-500.0,0.00019178,2]
[357173495,1743859834046,-500.0,0.00019178,2]
[357173496,1743859834055,-500.0,0.00019178,2]
[357173497,1743859834065,-500.0,0.00019178,2]
[357173498,1743859834075,-500.0,0.00019178,2]
[357173499,1743859834084,-500.0,0.00019178,2]
[357173500,1743859834094,-500.0,0.00019178,2]
[357173501,1743859834103,-500.0,0.00019178,2]
[357173502,1743859834113,-500.0,0.00019178,2]
[357173503,1743859834122,-500.0,0.00019178,2]
[357173504,1743859834131,-500.0,0.00019178,2]
[357173505,1743859834140,-500.0,0.00019178,2]
[357173506,1743859834150,-500.0,0.00019178,2]
[357173507,1743859834160,-500.0,0.00019178,2]
[357173508,1743859834169,-500.0,0.00019178,2]
[357173509,1743859834179,-500.0,0.00019178,2]
[357173510,1743859834188,-500.0,0.00019178,2]
[357173511,1743859834198,-500.0,0.00019178,2]
[357173512,1743859834207,-500.0,0.00019178,2]
[357173513,1743859834217,-500.0,0.00019178,2]
[357173514,1743859834226,-500.0,0.00019178,2]
[357173515,1743859834236,-500.0,0.00019178,2]
[357173516,1743859834245,-500.0,0.00019178,2]
[357173517,1743859834255,-500.0,0.00019178,2]
[357173518,1743859834265,-500.0,0.00019178,2]
[357173519,1743859834276,-500.0,0.00019178,2]
[357173520,1743859834286,-500.0,0.00019178,2]
[357173521,1743859834296,-500.0,0.00019178,2]
[357173522,1743859834307,-500.0,0.00019178,2]
[357173523,1743859834318,-500.0,0.00019178,2]
[357173524,1743859834330,-500.0,0.00019178,2]
[357173525,1743859834340,-500.0,0.00019178,2]
[357173526,1743859834350,-500.0,0.00019178,2]
[357173527,1743859834361,-500.0,0.00019178,2]
[357173528,1743859834371,-500.0,0.00019178,2]
[357173529,1743859834381,-500.0,0.00019178,2]
[357173530,1743859834392,-500.0,0.00019178,2]
[357173531,1743859834401,-500.0,0.00019178,2]
[357173532,1743859834411,-500.0,0.00019178,2]
[357173533,1743859834421,-500.0,0.00019178,2]
[357173534,1743859834430,-500.0,0.00019178,2]
[357173535,1743859834440,-510.53,0.00019178,2]
[357173536,1743859834450,-500.0,0.00019178,2]
[357173537,1743859834462,-500.45548925,0.00019178,2]
[357173538,1743859834473,-500.0,0.00019178,2]
[357173539,1743859834484,-500.0,0.00019178,2]
[357173540,1743859834494,-500.0,0.00019178,2]
[357173541,1743859834505,-500.0,0.00019178,2]
[357173542,1743859834514,-953.92,0.00019178,2]
[357173543,1743859834525,-500.0,0.00019178,2]
[357173544,1743859834535,-500.0,0.00019178,2]
[357173545,1743859834546,-500.0,0.00019178,2]
[357173546,1743859834556,-1128.6,0.00019178,2]
[357173547,1743859834566,-500.0,0.00019178,2]
[357173548,1743859834576,-500.0,0.00019178,2]
[357173549,1743859834586,-500.0,0.00019178,2]
[357173550,1743859834595,-335.2173004,0.00019178,2]
[357173551,1743859834605,-3429.77,0.00019178,2]
[357173552,1743859834615,-513.5752272,0.00019178,2]
[357173553,1743859834624,-500.0,0.00019178,2]
[357173554,1743859834634,-500.0,0.00019178,2]
[357173555,1743859834644,-1872.54,0.00019178,2]
[357173556,1743859834654,-500.0,0.00019178,2]
[357173557,1743859834664,-555.9,0.00019178,2]
[357173558,1743859834674,-3080.4,0.00019178,2]
[357173559,1743859834683,-933.84,0.00019178,2]
[357173560,1743859834692,-1244.89,0.00019178,2]
[357173561,1743859834702,-500.0,0.00019178,2]
[357173562,1743859834712,-500.0,0.00019178,2]
[357173563,1743859834729,-8059.55,0.00019178,2]
[357173564,1743859834750,-500.0,0.00019178,2]
[357173565,1743859834759,-500.0,0.00019178,2]
[357173566,1743859834768,-500.0,0.00019178,2]
[357173567,1743859834778,-1252.18,0.00019178,2]
[357173568,1743859834789,-500.0,0.00019178,2]
[357173569,1743859834798,-500.0,0.00019178,2]
[357173570,1743859834808,-2473.04,0.00019178,2]
[357173571,1743859834817,-1572.71,0.00019178,2]
[357173572,1743859834826,-500.0,0.00019178,2]
[357173573,1743859834835,-678.98,0.00019178,2]
[357173574,1743859834844,-500.0,0.00019178,2]
[357173575,1743859834853,-3271.08,0.00019178,2]
[357173576,1743859834862,-500.0,0.00019178,2]
[357173577,1743859834871,-500.0,0.00019178,2]
[357173578,1743859834882,-500.0,0.00019178,2]
[357173579,1743859834891,-8408.16,0.00019178,2]
[357173580,1743859834901,-451.69477487,0.00019178,2]
[357173581,1743859834910,-1191.1,0.00019178,2]
[357173582,1743859834919,-500.0,0.00019178,2]
[357173583,1743859834929,-4899.66,0.00019178,2]
[357173584,1743859834938,-500.0,0.00019178,2]
[357173585,1743859834948,-500.0,0.00019178,2]
[357173586,1743859834958,-500.0,0.00019178,2]
[357173587,1743859834967,-500.0,0.00019178,2]
[357173588,1743859834977,-500.0,0.00019178,2]
[357173589,1743859834987,-885.72,0.00019178,2]
[357173590,1743859834996,-500.0,0.00019178,2]
[357173591,1743859835007,-500.0,0.00019178,2]
[357173592,1743859835016,-500.0,0.00019178,2]
[357173593,1743859835027,-696.05,0.00019178,2]
[357173594,1743859835036,-500.0,0.00019178,2]
[357173595,1743859835046,-500.0,0.00019178,2]
[357173596,1743859835055,-500.0,0.00019178,2]
[357173597,1743859835064,-500.0,0.00019178,2]
[357173598,1743859835074,-500.0,0.00019178,2]
[357173599,1743859835083,-2077.48,0.00019178,2]
[357173600,1743859835092,-569.02,0.00019178,2]
[357173601,1743859835102,-2289.66,0.00019178,2]
[357173602,1743859835111,-500.0,0.00019178,2]
[357173603,1743859835120,-500.0,0.00019178,2]
[357173604,1743859835130,-679.83,0.00019178,2]
[357173605,1743859835139,-49435.46,0.00019178,2]
[357173606,1743859835149,-2044.32,0.00019178,2]
[357173607,1743859835159,-3160.91,0.00019178,2]
[357173608,1743859835168,-500.0,0.00019178,2]
[357173609,1743859835178,-500.0,0.00019178,2]
[357173610,1743859835188,-867.48,0.00019178,2]
[357173611,1743859835198,-500.0,0.00019178,2]
[357173612,1743859835208,-1005.19,0.00019178,2]
[357173613,1743859835217,-500.0,0.00019178,2]
[357173614,1743859835227,-1762.72,0.00019178,2]
[357173615,1743859835237,-500.0,0.00019178,2]
[357173616,1743859835247,-500.0,0.00019178,2]
[357173617,1743859835257,-500.0,0.00019178,2]
[357173618,1743859835266,-500.0,0.00019178,2]
[357173619,1743859835277,-500.0,0.00019178,2]
[357173620,1743859835287,-500.0,0.00019178,2]
[357173621,1743859835296,-5023.77,0.00019178,2]
[357173622,1743859835306,-500.0,0.00019178,2]
[357173623,1743859835409,-500.0,0.00019178,2]
[357173624,1743859835419,-500.0,0.00019178,2]
[357173625,1743859835428,-500.0,0.00019178,2]
[357173626,1743859835437,-737.72,0.00019178,2]
[357173627,1743859835447,-973.86,0.00019178,2]
[357173628,1743859835457,-500.0,0.00019178,2]
[357173629,1743859835469,-500.0,0.00019178,2]
[357173630,1743859835479,-500.0,0.00019178,2]
[357173631,1743859835488,-500.0,0.00019178,2]
[357173632,1743859835497,-500.96,0.00019178,2]
[357173633,1743859835509,-500.0,0.00019178,2]
[357173634,1743859835519,-500.05,0.00019178,2]
[357173635,1743859835529,-990.94,0.00019178,2]
[357173636,1743859835539,-500.0,0.00019178,2]
[357173637,1743859835549,-500.0,0.00019178,2]
[357173638,1743859835558,-500.0,0.00019178,2]
[357173639,1743859835568,-500.0,0.00019178,2]
[357173640,1743859835579,-1947.85,0.00019178,2]
[357173641,1743859835589,-968.64,0.00019178,2]
[357173642,1743859835600,-466.63654285,0.00019178,2]
[357173643,1743859835610,-500.0,0.00019178,2]
[357173644,1743859835620,-924.68,0.00019178,2]
[357173645,1743859835631,-500.0,0.00019178,2]
[357173646,1743859835640,-500.0,0.00019178,2]
[357173647,1743859835651,-151.0,0.0001934,2]
[357173648,1743859835662,-200.0,0.0001934,2]
[357173649,1743859835672,-370000.0,0.00019352,2]
[357173650,1743859835683,-385.09932271,0.00019373,2]
[357173651,1743859835693,-500.0,0.00019373,2]
[357173652,1743859835703,-305.49890624,0.00019373,2]
[357173653,1743859835713,-500.0,0.00019373,2]
[357173654,1743859835723,-318.32511111,0.00019373,2]
[357173655,1743859835732,-500.0,0.00019373,2]
[357173656,1743859835742,-500.0,0.00019373,2]
[357173657,1743859835752,-500.0,0.00019373,2]
[357173658,1743859835761,-500.0,0.00019373,2]
[357173659,1743859835771,-500.0,0.00019373,2]
[357173660,1743859835782,-500.0,0.00019373,2]
[357173661,1743859835791,-500.0,0.00019373,2]
[357173662,1743859835800,-442.82545717,0.00019373,2]
[357173663,1743859835810,-400.41218334,0.00019373,2]
[357173664,1743859835821,-500.0,0.00019373,2]
[357173665,1743859835830,-500.0,0.00019373,2]
[357173666,1743859835840,-500.0,0.00019373,2]
[357173667,1743859835849,-507.43352697,0.00019373,2]
[357173668,1743859835858,-500.0,0.00019373,2]
[357173669,1743859835867,-500.0,0.00019373,2]
[357173670,1743859835876,-500.0,0.00019373,2]
[357173671,1743859835885,-500.0,0.00019373,2]
[357173672,1743859835895,-500.0,0.00019373,2]
[357173673,1743859835904,-500.0,0.00019373,2]
[357173674,1743859835914,-503.62896741,0.00019373,2]
[357173675,1743859835924,-500.0,0.00019452,2]
[357173676,1743859835934,-500.0,0.00019452,2]
[357173677,1743859835944,-500.0,0.00019452,2]
[357173678,1743859835953,-500.0,0.00019452,2]
[357173679,1743859835962,-500.0,0.00019452,2]
[357173680,1743859835973,-500.0,0.00019452,2]
[357173681,1743859835982,-500.0,0.00019452,2]
[357173682,1743859835991,-500.0,0.00019452,2]
[357173683,1743859836001,-500.0,0.00019452,2]
[357173684,1743859836011,-500.0,0.00019452,2]
[357173685,1743859836020,-500.0,0.00019452,2]
[357173686,1743859836031,-500.0,0.00019452,2]
[357173687,1743859836040,-500.0,0.00019452,2]
[357173688,1743859836049,-500.0,0.00019452,2]
[357173689,1743859836059,-500.0,0.00019452,2]
[357173690,1743859836069,-500.0,0.00019452,2]
[357173691,1743859836079,-520.86776226,0.00019452,2]
[357173692,1743859836088,-500.0,0.00019452,2]
[357173693,1743859836097,-500.0,0.00019452,2]
[357173694,1743859836107,-200.0,0.00019452,2]
[357173695,1743859836116,-500.0,0.00019452,2]
[357173696,1743859836126,-500.0,0.00019452,2]
[357173697,1743859836136,-500.0,0.00019452,2]
[357173698,1743859836145,-500.0,0.00019452,2]
[357173699,1743859836154,-500.0,0.00019452,2]
[357173700,1743859836163,-500.0,0.00019452,2]
[357173701,1743859836172,-500.0,0.00019452,2]
[357173702,1743859836182,-500.0,0.00019452,2]
[357173703,1743859836191,-500.0,0.00019452,2]
[357173704,1743859836200,-500.0,0.00019452,2]
[357173705,1743859836210,-500.0,0.00019452,2]
[357173706,1743859836219,-500.0,0.00019452,2]
[357173707,1743859836229,-500.0,0.00019452,2]
[357173708,1743859836238,-500.0,0.00019452,2]
[357173709,1743859836248,-500.0,0.00019452,2]
[357173710,1743859836257,-284.54679321,0.00019452,2]
[357173711,1743859836266,-174.68120549,0.00019452,2]
[357173712,1743859836276,-562.71404828,0.00019452,2]
[357173713,1743859836285,-500.0,0.00019452,2]
[357173714,1743859836295,-500.0,0.00019452,2]
[357173715,1743859836306,-500.0,0.00019452,2]
[357173716,1743859836315,-500.0,0.00019452,2]
[357173717,1743859836324,-500.0,0.00019452,2]
[357173718,1743859836333,-500.0,0.00019452,2]
[357173719,1743859836343,-710.35,0.00019452,2]
[357173720,1743859836352,-500.0,0.00019452,2]
[357173721,1743859836362,-381.40983869,0.00019452,2]
[357173722,1743859836372,-500.0,0.00019452,2]
[357173723,1743859836381,-500.0,0.00019452,2]
[357173724,1743859836390,-500.0,0.00019452,2]
[357173725,1743859836400,-500.0,0.00019452,2]
[357173726,1743859836409,-500.0,0.00019452,2]
[357173727,1743859836419,-961.8,0.00019452,2]
[357173728,1743859836428,-500.0,0.00019452,2]
[357173729,1743859836438,-500.57479975,0.00019452,2]
[357173730,1743859836447,-500.0,0.00019452,2]
[357173731,1743859836460,-500.0,0.00019452,2]
[357173732,1743859836470,-500.0,0.00019452,2]
[357173733,1743859836479,-500.0,0.00019452,2]
[357173734,1743859836489,-500.0,0.00019452,2]
[357173735,1743859836499,-500.0,0.00019452,2]
[357173736,1743859836509,-852.98,0.00019452,2]
[357173737,1743859836518,-500.0,0.00019452,2]
[357173738,1743859836529,-500.0,0.00019452,2]
[357173739,1743859836540,-598.04297463,0.00019452,2]
[357173740,1743859836549,-500.0,0.00019452,2]
[357173741,1743859836559,-500.0,0.00019452,2]
[357173742,1743859836568,-938.67,0.00019452,2]
[357173743,1743859836577,-341.68,0.00019452,2]
[357173744,1743859836586,-500.0,0.00019452,2]
[357173745,1743859836596,-500.0,0.00019452,2]
[357173746,1743859836605,-500.0,0.00019452,2]
[357173747,1743859836614,-500.0,0.00019452,2]
[357173748,1743859836624,-500.0,0.00019452,2]
[357173749,1743859836633,-500.0,0.00019452,2]
[357173750,1743859836643,-500.0,0.00019452,2]
[357173751,1743859836658,-500.0,0.00019452,2]
[357173752,1743859836667,-500.0,0.00019452,2]
[357173753,1743859836677,-500.0,0.00019452,2]
[357173754,1743859836686,-500.0,0.00019452,2]
[357173755,1743859836696,-500.0,0.00019452,2]
[357173756,1743859836705,-500.0,0.00019452,2]
[357173757,1743859836715,-500.0,0.00019452,2]
[357173758,1743859836724,-500.0,0.00019452,2]
[357173759,1743859836733,-500.0,0.00019452,2]
[357173760,1743859836743,-500.0,0.00019452,2]
[357173761,1743859836752,-500.0,0.00019452,2]
[357173762,1743859836762,-500.0,0.00019452,2]
[357173763,1743859836771,-500.0,0.00019452,2]
[357173764,1743859836782,-500.0,0.00019452,2]
[357173765,1743859836792,-500.0,0.00019452,2]
[357173766,1743859836801,-500.0,0.00019452,2]
[357173767,1743859836811,-500.0,0.00019452,2]
[357173768,1743859836820,-500.0,0.00019452,2]
[357173769,1743859836830,-500.0,0.00019452,2]
[357173770,1743859836839,-500.0,0.00019452,2]
[357173771,1743859836849,-500.0,0.00019452,2]
[357173772,1743859836858,-500.0,0.00019452,2]
[357173773,1743859836868,-500.0,0.00019452,2]
[357173774,1743859836878,-500.0,0.00019452,2]
[357173775,1743859836887,-500.0,0.00019452,2]
[357173776,1743859836897,-500.0,0.00019452,2]
[357173777,1743859836907,-500.0,0.00019452,2]
[357173778,1743859836917,-500.0,0.00019452,2]
[357173779,1743859836926,-500.0,0.00019452,2]
[357173780,1743859836936,-500.0,0.00019452,2]
[357173781,1743859836945,-500.0,0.00019452,2]
[357173782,1743859836955,-500.0,0.00019452,2]
[357173783,1743859836964,-500.0,0.00019452,2]
[357173784,1743859836973,-500.0,0.00019452,2]
[357173785,1743859836983,-500.0,0.00019452,2]
[357173786,1743859836993,-500.0,0.00019452,2]
[357173787,1743859837002,-500.0,0.00019452,2]
[357173788,1743859837012,-500.0,0.00019452,2]
[357173789,1743859837021,-500.0,0.00019452,2]